[Event "*** Titled Tuesday Blitz"]
[Site "Chess.com"]
[Date "2020.05.05"]
[Round "9"]
[White "top_bu_tz"]
[Black "Sesleria"]
[Result "0-1"]
[WhiteElo "2192"]
[BlackElo "2076"]
[TimeControl "180+1"]
[EndTime "11:47:37 PDT"]
[Termination "Sesleria won by resignation"]

1. e4 {[%clk 0:03:00.9]} 1... c5 {[%clk 0:02:57.8]} 2. Nf3 {[%clk 0:02:57.9]}
2... e6 {[%clk 0:02:57.9]} 3. d4 {[%clk 0:02:57.3]} 3... cxd4 {[%clk 0:02:58]}
4. Nxd4 {[%clk 0:02:58.2]} 4... Nc6 {[%clk 0:02:57.9]} 5. Nc3 {[%clk 0:02:47.7]}
5... Qc7 {[%clk 0:02:57.4]} 6. a3 {[%clk 0:02:47]} 6... a6 {[%clk 0:02:56.4]} 7.
Be3 {[%clk 0:02:47.3]} 7... Nf6 {[%clk 0:02:55.5]} 8. Be2 {[%clk 0:02:47.7]}
8... b5 {[%clk 0:02:50]} 9. O-O {[%clk 0:02:47]} 9... Bb7 {[%clk 0:02:50.1]} 10.
Bf3 {[%clk 0:01:36.4]} 10... Ne5 {[%clk 0:02:21.7]} 11. Ndxb5 {[%clk 0:01:12.8]}
11... axb5 {[%clk 0:02:20]} 12. Nxb5 {[%clk 0:01:13.7]} 12... Qa5 {[%clk
0:02:00.8]} 13. Nd6+ {[%clk 0:01:12.4]} 13... Bxd6 {[%clk 0:01:56.7]} 14. Qxd6
{[%clk 0:01:13.3]} 14... Nc4 {[%clk 0:01:44.8]} 15. Qg3 {[%clk 0:00:52.7]} 15...
O-O {[%clk 0:01:30.9]} 16. Bh6 {[%clk 0:00:50.6]} 16... Ne8 {[%clk 0:01:28.9]}
17. Be2 {[%clk 0:00:37.5]} 17... d5 {[%clk 0:01:11.3]} 18. exd5 {[%clk
0:00:35.3]} 18... Bxd5 {[%clk 0:01:08.8]} 19. b3 {[%clk 0:00:29.3]} 19... Ncd6
{[%clk 0:01:06.7]} 20. Bxg7 {[%clk 0:00:28.2]} 20... Nxg7 {[%clk 0:01:04.6]} 21.
Qxd6 {[%clk 0:00:28.3]} 21... Nf5 {[%clk 0:01:00.1]} 22. Qf4 {[%clk 0:00:26]}
22... Qc3 {[%clk 0:00:57.8]} 23. Bd3 {[%clk 0:00:20.5]} 23... Kh8 {[%clk
0:00:29.2]} 24. g4 {[%clk 0:00:18.6]} 24... Ne7 {[%clk 0:00:26.7]} 25. h4 {[%clk
0:00:17.2]} 25... Ng6 {[%clk 0:00:23.2]} 26. Qh6 {[%clk 0:00:16.2]} 26... f5
{[%clk 0:00:18.4]} 27. h5 {[%clk 0:00:14.4]} 27... Qd4 {[%clk 0:00:15.2]} 28.
Qg5 {[%clk 0:00:08.5]} 28... Nf4 {[%clk 0:00:13.6]} 29. gxf5 {[%clk 0:00:06.7]}
29... Nh3+ {[%clk 0:00:13.7]} 30. Kh2 {[%clk 0:00:06.6]} 30... Nxg5 {[%clk
0:00:14]} 0-1

[Event "*** Titled Tuesday Blitz"]
[Site "Chess.com"]
[Date "2020.05.05"]
[Round "9"]
[White "Saxar85"]
[Black "Korona_91"]
[Result "1-0"]
[WhiteElo "2639"]
[BlackElo "2462"]
[TimeControl "180+1"]
[EndTime "11:47:38 PDT"]
[Termination "Saxar85 won by resignation"]

1. Nf3 {[%clk 0:02:55.6]} 1... g6 {[%clk 0:02:59.7]} 2. e4 {[%clk 0:02:53]} 2...
d6 {[%clk 0:02:58.3]} 3. d4 {[%clk 0:02:49.9]} 3... Bg7 {[%clk 0:02:57.7]} 4. g3
{[%clk 0:02:48.3]} 4... Nd7 {[%clk 0:02:57.3]} 5. Bg2 {[%clk 0:02:48.1]} 5... e5
{[%clk 0:02:57.8]} 6. O-O {[%clk 0:02:47.2]} 6... Ne7 {[%clk 0:02:57.8]} 7. dxe5
{[%clk 0:02:43.6]} 7... dxe5 {[%clk 0:02:50.4]} 8. Nc3 {[%clk 0:02:40.7]} 8...
O-O {[%clk 0:02:49.5]} 9. b3 {[%clk 0:02:40.5]} 9... Nc6 {[%clk 0:02:47.9]} 10.
Ba3 {[%clk 0:02:39.2]} 10... Re8 {[%clk 0:02:47.4]} 11. Nd5 {[%clk 0:02:39.1]}
11... Nd4 {[%clk 0:02:43.8]} 12. c3 {[%clk 0:02:36.8]} 12... Nxf3+ {[%clk
0:02:40.1]} 13. Qxf3 {[%clk 0:02:36.1]} 13... c6 {[%clk 0:02:40.4]} 14. Ne3
{[%clk 0:02:35.8]} 14... Nf6 {[%clk 0:02:38.1]} 15. Rfd1 {[%clk 0:02:31.9]}
15... Qa5 {[%clk 0:02:29.6]} 16. Bb4 {[%clk 0:02:27.7]} 16... Qc7 {[%clk
0:02:29.9]} 17. Bd6 {[%clk 0:02:23.4]} 17... Qa5 {[%clk 0:02:25.9]} 18. Nc4
{[%clk 0:02:22.8]} 18... Qa6 {[%clk 0:02:26]} 19. h3 {[%clk 0:02:18.7]} 19...
Nh5 {[%clk 0:02:20.6]} 20. a4 {[%clk 0:02:12.7]} 20... b5 {[%clk 0:02:11.9]} 21.
axb5 {[%clk 0:02:05.7]} 21... Qxb5 {[%clk 0:02:12.4]} 22. Bb4 {[%clk 0:02:04.9]}
22... Bf8 {[%clk 0:01:47.7]} 23. Bf1 {[%clk 0:01:58.2]} 23... Qb8 {[%clk
0:01:41.7]} 24. Bd6 {[%clk 0:01:44.3]} 24... Bxd6 {[%clk 0:01:33.2]} 25. Nxd6
{[%clk 0:01:44]} 25... Rf8 {[%clk 0:01:33.1]} 26. c4 {[%clk 0:01:22.1]} 26...
Be6 {[%clk 0:01:28.4]} 27. Qc3 {[%clk 0:01:21.2]} 27... f6 {[%clk 0:01:26.1]}
28. b4 {[%clk 0:01:19.2]} 28... Qc7 {[%clk 0:01:20.6]} 29. c5 {[%clk 0:01:18.8]}
29... Kh8 {[%clk 0:01:17.2]} 30. Kh2 {[%clk 0:01:16.6]} 30... Ng7 {[%clk
0:01:17.2]} 31. Ra6 {[%clk 0:01:09.1]} 31... f5 {[%clk 0:01:16.8]} 32. Qxe5
{[%clk 0:01:07.6]} 32... fxe4 {[%clk 0:01:17]} 33. Kg1 {[%clk 0:01:00.3]} 33...
Bd5 {[%clk 0:01:11.6]} 34. b5 {[%clk 0:00:48.5]} 34... Rae8 {[%clk 0:01:02.8]}
35. Qd4 {[%clk 0:00:47.9]} 35... Re6 {[%clk 0:00:55.3]} 36. Rda1 {[%clk
0:00:43.1]} 36... Ref6 {[%clk 0:00:44]} 37. Rxa7 {[%clk 0:00:40.9]} 37... Qb8
{[%clk 0:00:40.7]} 38. Ra8 {[%clk 0:00:38.9]} 38... Qc7 {[%clk 0:00:33.3]} 39.
Qxf6 {[%clk 0:00:36]} 1-0

[Event "*** Titled Tuesday Blitz"]
[Site "Chess.com"]
[Date "2020.05.05"]
[Round "9"]
[White "Larina_Marija"]
[Black "Kotofeyca"]
[Result "0-1"]
[WhiteElo "2128"]
[BlackElo "2408"]
[TimeControl "180+1"]
[EndTime "11:47:38 PDT"]
[Termination "Kotofeyca won on time"]

1. e4 {[%clk 0:03:00]} 1... c5 {[%clk 0:02:59.2]} 2. Nc3 {[%clk 0:02:59.6]} 2...
d6 {[%clk 0:02:57.6]} 3. d4 {[%clk 0:02:59.2]} 3... cxd4 {[%clk 0:02:57.3]} 4.
Qxd4 {[%clk 0:03:00.1]} 4... Nc6 {[%clk 0:02:57.1]} 5. Qd2 {[%clk 0:03:00.6]}
5... g6 {[%clk 0:02:56.7]} 6. b3 {[%clk 0:03:00.4]} 6... Bh6 {[%clk 0:02:53.7]}
7. f4 {[%clk 0:02:59.8]} 7... e5 {[%clk 0:02:51.3]} 8. g3 {[%clk 0:02:58.6]}
8... exf4 {[%clk 0:02:47.7]} 9. gxf4 {[%clk 0:02:33.6]} 9... Qh4+ {[%clk
0:02:46.7]} 10. Qf2 {[%clk 0:02:33.1]} 10... Qxf2+ {[%clk 0:02:18.9]} 11. Kxf2
{[%clk 0:02:34]} 11... Nb4 {[%clk 0:02:14.9]} 12. Nb5 {[%clk 0:01:25.8]} 12...
Bg7 {[%clk 0:01:51.3]} 13. c3 {[%clk 0:00:54.6]} 13... Kd8 {[%clk 0:01:38.6]}
14. Ba3 {[%clk 0:00:50.5]} 14... Nc2 {[%clk 0:01:32.8]} 15. Rd1 {[%clk
0:00:47.4]} 15... Nxa3 {[%clk 0:01:25.5]} 16. Nxa3 {[%clk 0:00:47.5]} 16... Bxc3
{[%clk 0:01:20.1]} 17. Rxd6+ {[%clk 0:00:46.8]} 17... Ke7 {[%clk 0:01:20.2]} 18.
e5 {[%clk 0:00:46.5]} 18... Bb4 {[%clk 0:01:17.2]} 19. Nc4 {[%clk 0:00:43.1]}
19... Bxd6 {[%clk 0:01:14.5]} 20. Nxd6 {[%clk 0:00:23.2]} 20... Nh6 {[%clk
0:01:10.1]} 21. Bc4 {[%clk 0:00:16.6]} 21... a6 {[%clk 0:01:05.2]} 22. Nf3
{[%clk 0:00:15.5]} 22... b5 {[%clk 0:01:04]} 23. Bd5 {[%clk 0:00:13]} 23... Ra7
{[%clk 0:01:04.3]} 24. Rc1 {[%clk 0:00:11.2]} 24... Be6 {[%clk 0:00:56.3]} 25.
Bxe6 {[%clk 0:00:10.4]} 25... Kxe6 {[%clk 0:00:56.6]} 26. Ng5+ {[%clk
0:00:10.8]} 26... Kd7 {[%clk 0:00:56.6]} 27. Nde4 {[%clk 0:00:09.3]} 27... Rc7
{[%clk 0:00:45.4]} 28. Nf6+ {[%clk 0:00:08.8]} 28... Kc8 {[%clk 0:00:43.2]} 29.
Rd1 {[%clk 0:00:04.9]} 29... Rc2+ {[%clk 0:00:38.2]} 30. Kf3 {[%clk 0:00:03.2]}
30... Rd8 {[%clk 0:00:35.8]} 31. Rxd8+ {[%clk 0:00:01.6]} 31... Kxd8 {[%clk
0:00:36.7]} 0-1

[Event "*** Titled Tuesday Blitz"]
[Site "Chess.com"]
[Date "2020.05.05"]
[Round "9"]
[White "Kildepiotr"]
[Black "Volodar_Murzin"]
[Result "0-1"]
[WhiteElo "2495"]
[BlackElo "2647"]
[TimeControl "180+1"]
[EndTime "11:47:39 PDT"]
[Termination "Volodar_Murzin won by resignation"]

1. Nf3 {[%clk 0:03:00.9]} 1... Nf6 {[%clk 0:02:59.2]} 2. g3 {[%clk 0:03:01.1]}
2... g6 {[%clk 0:02:58.7]} 3. Bg2 {[%clk 0:03:01.4]} 3... Bg7 {[%clk 0:02:59.2]}
4. O-O {[%clk 0:03:02]} 4... O-O {[%clk 0:03:00.1]} 5. d4 {[%clk 0:03:02.5]}
5... d6 {[%clk 0:03:00.8]} 6. Nbd2 {[%clk 0:03:02.1]} 6... Nbd7 {[%clk
0:03:01.4]} 7. e4 {[%clk 0:03:02.1]} 7... e5 {[%clk 0:03:02]} 8. dxe5 {[%clk
0:03:02.5]} 8... dxe5 {[%clk 0:03:01.9]} 9. Qe2 {[%clk 0:03:02.3]} 9... Re8
{[%clk 0:03:00.1]} 10. a4 {[%clk 0:03:02.3]} 10... a5 {[%clk 0:02:59.2]} 11. b3
{[%clk 0:03:02.3]} 11... b6 {[%clk 0:02:59.3]} 12. Bb2 {[%clk 0:03:00.1]} 12...
Ba6 {[%clk 0:02:59.1]} 13. Nc4 {[%clk 0:03:00.2]} 13... h6 {[%clk 0:02:56.2]}
14. Rfd1 {[%clk 0:02:57.5]} 14... Qe7 {[%clk 0:02:56]} 15. Nfd2 {[%clk
0:02:56.8]} 15... Qe6 {[%clk 0:02:55.4]} 16. Qe1 {[%clk 0:02:54.7]} 16... Rad8
{[%clk 0:02:49.3]} 17. Ne3 {[%clk 0:02:50.5]} 17... Nc5 {[%clk 0:02:48.4]} 18.
f3 {[%clk 0:02:50.2]} 18... h5 {[%clk 0:02:33.7]} 19. Ndc4 {[%clk 0:02:48.8]}
19... Nh7 {[%clk 0:02:32]} 20. Nd5 {[%clk 0:02:22.1]} 20... Rd7 {[%clk
0:02:26.9]} 21. Nce3 {[%clk 0:02:18.9]} 21... h4 {[%clk 0:02:18.9]} 22. g4
{[%clk 0:01:57.7]} 22... Ng5 {[%clk 0:02:12.8]} 23. Qxh4 {[%clk 0:01:54.2]}
23... f6 {[%clk 0:02:09.9]} 24. Qg3 {[%clk 0:01:47.2]} 24... Nf7 {[%clk
0:02:00]} 25. h4 {[%clk 0:01:45.3]} 25... Red8 {[%clk 0:01:56.4]} 26. Bf1 {[%clk
0:01:27.7]} 26... Bxf1 {[%clk 0:01:52.3]} 27. Rxf1 {[%clk 0:01:27.2]} 27... Bh6
{[%clk 0:01:47.5]} 28. Rae1 {[%clk 0:00:51]} 28... c6 {[%clk 0:01:36.9]} 29.
Nxb6 {[%clk 0:00:48.8]} 29... Bf4 {[%clk 0:01:33.4]} 30. Qf2 {[%clk 0:00:39.9]}
30... Rd2 {[%clk 0:01:29.8]} 31. Re2 {[%clk 0:00:37.9]} 31... Rxe2 {[%clk
0:01:15.6]} 32. Qxe2 {[%clk 0:00:38.8]} 32... Nxe4 {[%clk 0:00:58]} 33. fxe4
{[%clk 0:00:37]} 33... Bxe3+ {[%clk 0:00:55.7]} 34. Qxe3 {[%clk 0:00:37]} 34...
Qxg4+ {[%clk 0:00:55.6]} 35. Kf2 {[%clk 0:00:34.7]} 35... Qxh4+ {[%clk
0:00:52.7]} 36. Ke2 {[%clk 0:00:34.7]} 36... Ng5 {[%clk 0:00:43.5]} 37. Rxf6
{[%clk 0:00:27.9]} 37... Qg4+ {[%clk 0:00:41.3]} 38. Kf2 {[%clk 0:00:20.6]}
38... Nxe4+ {[%clk 0:00:35.5]} 39. Kf1 {[%clk 0:00:15]} 39... Rd1+ {[%clk
0:00:34.7]} 0-1

[Event "*** Titled Tuesday Blitz"]
[Site "Chess.com"]
[Date "2020.05.05"]
[Round "9"]
[White "AshotParvanyan"]
[Black "Danfii"]
[Result "1/2-1/2"]
[WhiteElo "2475"]
[BlackElo "2345"]
[TimeControl "180+1"]
[EndTime "11:47:39 PDT"]
[Termination "Game drawn by agreement"]

1. Nf3 {[%clk 0:03:00.9]} 1... d5 {[%clk 0:02:59.9]} 2. g3 {[%clk 0:03:00.9]}
2... Bg4 {[%clk 0:02:59.6]} 3. Bg2 {[%clk 0:03:01.1]} 3... c6 {[%clk 0:03:00.2]}
4. O-O {[%clk 0:03:01.2]} 4... e6 {[%clk 0:03:00.3]} 5. d4 {[%clk 0:03:00.4]}
5... Nf6 {[%clk 0:02:56.5]} 6. Nbd2 {[%clk 0:03:00.4]} 6... Be7 {[%clk
0:02:55.2]} 7. Re1 {[%clk 0:02:56.6]} 7... O-O {[%clk 0:02:52.9]} 8. c3 {[%clk
0:02:49.7]} 8... Nbd7 {[%clk 0:02:44.9]} 9. e4 {[%clk 0:02:49.6]} 9... dxe4
{[%clk 0:02:44.2]} 10. Nxe4 {[%clk 0:02:50.5]} 10... Nxe4 {[%clk 0:02:44.8]} 11.
Rxe4 {[%clk 0:02:51]} 11... Nf6 {[%clk 0:02:45.4]} 12. Re1 {[%clk 0:02:50.9]}
12... c5 {[%clk 0:02:44.6]} 13. Bf4 {[%clk 0:02:09.9]} 13... cxd4 {[%clk
0:02:43]} 14. Qxd4 {[%clk 0:02:05]} 14... Rc8 {[%clk 0:01:58.2]} 15. Ne5 {[%clk
0:01:18.4]} 15... Qxd4 {[%clk 0:01:36.6]} 16. cxd4 {[%clk 0:01:19.3]} 16... Rc2
{[%clk 0:01:30.9]} 17. Nxg4 {[%clk 0:00:55.6]} 17... Nxg4 {[%clk 0:01:31.8]} 18.
Be3 {[%clk 0:00:16.7]} 18... Rxb2 {[%clk 0:01:27.9]} 19. Rab1 {[%clk 0:00:12.6]}
19... Rxb1 {[%clk 0:01:01]} 20. Rxb1 {[%clk 0:00:13.5]} 20... Nxe3 {[%clk
0:01:01.3]} 21. fxe3 {[%clk 0:00:12]} 21... b6 {[%clk 0:00:51.8]} 22. Rc1 {[%clk
0:00:11.5]} 22... Bg5 {[%clk 0:00:48.5]} 23. Kf2 {[%clk 0:00:11.2]} 23... Rb8
{[%clk 0:00:44.8]} 24. Rc7 {[%clk 0:00:10.6]} 24... a5 {[%clk 0:00:44.7]} 25. a4
{[%clk 0:00:10.2]} 25... Kf8 {[%clk 0:00:36.4]} 26. Bc6 {[%clk 0:00:10]} 26...
Be7 {[%clk 0:00:28.3]} 27. Bb5 {[%clk 0:00:09.4]} 27... h5 {[%clk 0:00:16.9]}
28. Kf3 {[%clk 0:00:09.4]} 28... g6 {[%clk 0:00:16.1]} 29. h3 {[%clk 0:00:09.2]}
1/2-1/2

[Event "*** Titled Tuesday Blitz"]
[Site "Chess.com"]
[Date "2020.05.05"]
[Round "9"]
[White "viktorskliarov"]
[Black "ninullia"]
[Result "1-0"]
[WhiteElo "2581"]
[BlackElo "2454"]
[TimeControl "180+1"]
[EndTime "11:47:40 PDT"]
[Termination "viktorskliarov won on time"]

1. e4 {[%clk 0:03:00.6]} 1... e5 {[%clk 0:03:00.1]} 2. Nc3 {[%clk 0:02:59.9]}
2... Nc6 {[%clk 0:03:00.4]} 3. Bc4 {[%clk 0:02:59.9]} 3... Nf6 {[%clk
0:02:58.6]} 4. d3 {[%clk 0:02:59.9]} 4... Bd6 {[%clk 0:02:55.2]} 5. a3 {[%clk
0:02:54]} 5... O-O {[%clk 0:02:54]} 6. Nge2 {[%clk 0:02:53]} 6... h6 {[%clk
0:02:46.8]} 7. O-O {[%clk 0:02:50.8]} 7... a6 {[%clk 0:02:46.6]} 8. Ng3 {[%clk
0:02:40.3]} 8... Bc5 {[%clk 0:02:40.4]} 9. Kh1 {[%clk 0:02:23.6]} 9... d6 {[%clk
0:02:27.9]} 10. h3 {[%clk 0:02:23.5]} 10... Ne7 {[%clk 0:02:25.1]} 11. f4 {[%clk
0:02:15.4]} 11... exf4 {[%clk 0:02:24.6]} 12. Bxf4 {[%clk 0:02:16.2]} 12... Ng6
{[%clk 0:02:25.1]} 13. d4 {[%clk 0:02:12.4]} 13... Ba7 {[%clk 0:02:00.6]} 14.
Be3 {[%clk 0:01:46.6]} 14... b5 {[%clk 0:01:48.1]} 15. Bb3 {[%clk 0:01:36.7]}
15... c5 {[%clk 0:01:45.2]} 16. Bd5 {[%clk 0:01:04.1]} 16... Rb8 {[%clk
0:01:40.4]} 17. b4 {[%clk 0:01:01.8]} 17... Qc7 {[%clk 0:00:47.7]} 18. Rxf6
{[%clk 0:00:33.8]} 18... gxf6 {[%clk 0:00:32.3]} 19. Qh5 {[%clk 0:00:32.6]}
19... Be6 {[%clk 0:00:06.7]} 20. Nf5 {[%clk 0:00:15.3]} 20... cxd4 {[%clk
0:00:01.3]} 21. Qxh6 {[%clk 0:00:13.2]} 21... Bxf5 {[%clk 0:00:01.2]} 22. exf5
{[%clk 0:00:13.3]} 22... Ne5 {[%clk 0:00:01.4]} 23. Qxf6 {[%clk 0:00:06]} 23...
dxe3 {[%clk 0:00:01.2]} 24. Qg5+ {[%clk 0:00:06.3]} 1-0

[Event "*** Titled Tuesday Blitz"]
[Site "Chess.com"]
[Date "2020.05.05"]
[Round "9"]
[White "atalz0"]
[Black "Quattroporte300"]
[Result "1-0"]
[WhiteElo "2482"]
[BlackElo "2328"]
[TimeControl "180+1"]
[EndTime "11:47:41 PDT"]
[Termination "atalz0 won by resignation"]

1. d4 {[%clk 0:03:00.9]} 1... Nf6 {[%clk 0:02:58.3]} 2. c4 {[%clk 0:03:01.1]}
2... e6 {[%clk 0:02:58.3]} 3. Nc3 {[%clk 0:03:00.8]} 3... d5 {[%clk 0:02:56.5]}
4. cxd5 {[%clk 0:03:00.9]} 4... exd5 {[%clk 0:02:56.2]} 5. Bg5 {[%clk
0:03:00.9]} 5... c6 {[%clk 0:02:56.2]} 6. e3 {[%clk 0:03:00.5]} 6... h6 {[%clk
0:02:51.7]} 7. Bh4 {[%clk 0:02:52.1]} 7... Be7 {[%clk 0:02:38.1]} 8. Bd3 {[%clk
0:02:51]} 8... O-O {[%clk 0:02:34.1]} 9. Nge2 {[%clk 0:02:50.6]} 9... Ne4 {[%clk
0:02:14.6]} 10. Bxe7 {[%clk 0:02:50]} 10... Qxe7 {[%clk 0:02:14.2]} 11. O-O
{[%clk 0:02:49.4]} 11... Bf5 {[%clk 0:02:08.6]} 12. Bxe4 {[%clk 0:02:37.6]}
12... dxe4 {[%clk 0:01:57.9]} 13. Ng3 {[%clk 0:02:33]} 13... Bg6 {[%clk
0:01:57.6]} 14. Qg4 {[%clk 0:02:17.9]} 14... Re8 {[%clk 0:01:51.2]} 15. d5
{[%clk 0:01:59.1]} 15... cxd5 {[%clk 0:01:26.5]} 16. Nxd5 {[%clk 0:01:56.5]}
16... Qe5 {[%clk 0:01:26.8]} 17. Nf4 {[%clk 0:01:48.4]} 17... Bh7 {[%clk
0:01:18.3]} 18. Rad1 {[%clk 0:01:45.4]} 18... Nc6 {[%clk 0:01:15.3]} 19. b3
{[%clk 0:01:32.5]} 19... Rad8 {[%clk 0:01:14.1]} 20. h4 {[%clk 0:01:22.1]} 20...
Nb4 {[%clk 0:01:00]} 21. Nfh5 {[%clk 0:00:18.7]} 21... Nd3 {[%clk 0:00:51.5]}
22. Rd2 {[%clk 0:00:16.5]} 22... Bg6 {[%clk 0:00:45.1]} 23. Rfd1 {[%clk
0:00:15.8]} 23... Kh7 {[%clk 0:00:28.1]} 24. Nf4 {[%clk 0:00:15.7]} 24... Nxf4
{[%clk 0:00:13.8]} 25. Rxd8 {[%clk 0:00:14.6]} 25... Rxd8 {[%clk 0:00:14]} 26.
Rxd8 {[%clk 0:00:13.6]} 26... Nd3 {[%clk 0:00:14.6]} 27. h5 {[%clk 0:00:12.4]}
27... Qa1+ {[%clk 0:00:13.1]} 28. Kh2 {[%clk 0:00:12.6]} 28... Nxf2 {[%clk
0:00:12.9]} 29. hxg6+ {[%clk 0:00:10]} 29... fxg6 {[%clk 0:00:13]} 30. Qc8
{[%clk 0:00:10.1]} 1-0

[Event "*** Titled Tuesday Blitz"]
[Site "Chess.com"]
[Date "2020.05.05"]
[Round "9"]
[White "svilson23"]
[Black "lucasmito"]
[Result "0-1"]
[WhiteElo "2260"]
[BlackElo "2429"]
[TimeControl "180+1"]
[EndTime "11:47:41 PDT"]
[Termination "lucasmito won by resignation"]

1. d4 {[%clk 0:03:00.9]} 1... d5 {[%clk 0:02:58.2]} 2. Bg5 {[%clk 0:02:59.1]}
2... Nf6 {[%clk 0:02:57.8]} 3. Bxf6 {[%clk 0:02:56.1]} 3... gxf6 {[%clk
0:02:58.7]} 4. c4 {[%clk 0:02:52.9]} 4... c6 {[%clk 0:02:58.5]} 5. e3 {[%clk
0:02:24.3]} 5... Qb6 {[%clk 0:02:46]} 6. Qd2 {[%clk 0:02:02.6]} 6... Bf5 {[%clk
0:02:42.4]} 7. Nc3 {[%clk 0:02:02.4]} 7... e6 {[%clk 0:02:41.4]} 8. Nge2 {[%clk
0:01:52.2]} 8... Nd7 {[%clk 0:02:23.6]} 9. Ng3 {[%clk 0:01:51.4]} 9... Bg6
{[%clk 0:02:19.2]} 10. h4 {[%clk 0:01:48.5]} 10... h5 {[%clk 0:02:14.2]} 11. Be2
{[%clk 0:01:34.9]} 11... O-O-O {[%clk 0:02:10.7]} 12. c5 {[%clk 0:01:31.2]}
12... Qc7 {[%clk 0:02:09.7]} 13. b4 {[%clk 0:01:31.3]} 13... e5 {[%clk 0:02:08]}
14. b5 {[%clk 0:01:30.6]} 14... Kb8 {[%clk 0:01:59.3]} 15. Rb1 {[%clk
0:01:17.4]} 15... Ka8 {[%clk 0:01:59.2]} 16. Rb3 {[%clk 0:01:03.6]} 16... Nxc5
{[%clk 0:01:54.1]} 17. dxc5 {[%clk 0:01:01.5]} 17... Bxc5 {[%clk 0:01:55]} 18.
bxc6 {[%clk 0:00:59.3]} 18... bxc6 {[%clk 0:01:55.9]} 19. O-O {[%clk 0:00:57.6]}
19... d4 {[%clk 0:01:55.2]} 20. exd4 {[%clk 0:00:43.6]} 20... Bxd4 {[%clk
0:01:56.1]} 21. Qc1 {[%clk 0:00:41.3]} 21... f5 {[%clk 0:01:46.7]} 22. Bc4
{[%clk 0:00:39.7]} 22... e4 {[%clk 0:01:46.6]} 23. Nce2 {[%clk 0:00:34.8]} 23...
Be5 {[%clk 0:01:46.8]} 24. f4 {[%clk 0:00:30.9]} 24... exf3 {[%clk 0:01:43]} 25.
Rfxf3 {[%clk 0:00:31.3]} 25... Rd7 {[%clk 0:01:24.4]} 26. Ba6 {[%clk 0:00:31.2]}
26... Rhd8 {[%clk 0:01:12.7]} 27. Rf1 {[%clk 0:00:30.6]} 27... Qd6 {[%clk
0:01:04.6]} 28. Qb1 {[%clk 0:00:26.9]} 28... Bxg3 {[%clk 0:01:04.6]} 29. Bb7+
{[%clk 0:00:22.4]} 29... Rxb7 {[%clk 0:01:04.3]} 30. Rxb7 {[%clk 0:00:22.5]}
30... Qc5+ {[%clk 0:00:54.3]} 31. Kh1 {[%clk 0:00:21.5]} 31... f4 {[%clk
0:00:24.1]} 32. Rc7 {[%clk 0:00:15.5]} 32... Bxb1 {[%clk 0:00:22.1]} 0-1

[Event "*** Titled Tuesday Blitz"]
[Site "Chess.com"]
[Date "2020.05.05"]
[Round "9"]
[White "annacramling"]
[Black "Chessalary"]
[Result "0-1"]
[WhiteElo "1933"]
[BlackElo "2169"]
[TimeControl "180+1"]
[EndTime "11:47:42 PDT"]
[Termination "Chessalary won by resignation"]

1. d4 {[%clk 0:03:00.9]} 1... d5 {[%clk 0:02:59.6]} 2. c4 {[%clk 0:02:57.8]}
2... e6 {[%clk 0:02:59.5]} 3. Nc3 {[%clk 0:02:57.1]} 3... c6 {[%clk 0:02:59.5]}
4. e3 {[%clk 0:02:53.2]} 4... Nf6 {[%clk 0:02:51]} 5. Nf3 {[%clk 0:02:49]} 5...
Nbd7 {[%clk 0:02:49]} 6. Bd3 {[%clk 0:02:43.4]} 6... b6 {[%clk 0:02:49.2]} 7.
cxd5 {[%clk 0:02:34.4]} 7... cxd5 {[%clk 0:02:43.9]} 8. O-O {[%clk 0:02:31.8]}
8... Bb7 {[%clk 0:02:36.6]} 9. Bd2 {[%clk 0:02:31]} 9... Be7 {[%clk 0:02:34.8]}
10. Rc1 {[%clk 0:02:27.4]} 10... O-O {[%clk 0:02:34.6]} 11. Qe2 {[%clk
0:02:10.4]} 11... a6 {[%clk 0:02:23.8]} 12. Rfd1 {[%clk 0:01:37.4]} 12... Ne4
{[%clk 0:02:16.7]} 13. Be1 {[%clk 0:01:30.1]} 13... f5 {[%clk 0:02:05.8]} 14.
Nd2 {[%clk 0:01:21.8]} 14... g5 {[%clk 0:01:55.8]} 15. f3 {[%clk 0:01:21.5]}
15... Nxd2 {[%clk 0:01:48.9]} 16. Bxd2 {[%clk 0:01:21.5]} 16... Nf6 {[%clk
0:01:38.6]} 17. Qf2 {[%clk 0:01:02.6]} 17... g4 {[%clk 0:01:26.6]} 18. Kh1
{[%clk 0:00:59.1]} 18... Ne4 {[%clk 0:01:08.3]} 19. fxe4 {[%clk 0:00:41.7]}
19... fxe4 {[%clk 0:01:07.3]} 20. Qg3 {[%clk 0:00:42.1]} 20... exd3 {[%clk
0:01:08.2]} 21. Qxg4+ {[%clk 0:00:41.8]} 21... Kh8 {[%clk 0:01:00.8]} 22. Rf1
{[%clk 0:00:37.4]} 22... Qd6 {[%clk 0:00:47.6]} 23. e4 {[%clk 0:00:22.1]} 23...
dxe4 {[%clk 0:00:42.7]} 24. Nxe4 {[%clk 0:00:18.1]} 24... Qd5 {[%clk 0:00:38.6]}
25. Ng5 {[%clk 0:00:08.4]} 25... Bxg5 {[%clk 0:00:30.4]} 26. Bxg5 {[%clk
0:00:09.3]} 26... Qe4 {[%clk 0:00:26]} 27. Bf6+ {[%clk 0:00:05.5]} 27... Rxf6
{[%clk 0:00:21.8]} 28. Qxe4 {[%clk 0:00:05.6]} 28... Rxf1+ {[%clk 0:00:22.2]}
29. Rxf1 {[%clk 0:00:05.5]} 29... Bxe4 {[%clk 0:00:23.1]} 30. Rf7 {[%clk
0:00:05.1]} 30... d2 {[%clk 0:00:22.8]} 31. Rf1 {[%clk 0:00:05]} 31... Rc8
{[%clk 0:00:22.3]} 0-1